fUST/lending_fUST_20240825
["ID","MTS","AMOUNT","RATE_DAILY","PERIOD"]
[335913127,1724595045875,-500.0,0.00013698,2]
[335913128,1724595045885,-500.0,0.00013698,2]
[335913129,1724595045896,-500.0,0.00013698,2]
[335913130,1724595045906,-500.0,0.00013698,2]
[335913131,1724595045916,-500.0,0.00013698,2]
[335913132,1724595045925,-500.0,0.00013698,2]
[335913133,1724595045935,-575.51,0.00013698,2]
[335913134,1724595045944,-609.95,0.00013698,2]
[335913135,1724595045953,-500.0,0.00013698,2]
[335913136,1724595045963,-500.0,0.00013698,2]
[335913137,1724595045972,-500.0,0.00013698,2]
[335913138,1724595045982,-500.0,0.00013698,2]
[335913139,1724595045992,-500.0,0.00013698,2]
[335913140,1724595046001,-801.57,0.00013698,2]
[335913141,1724595046011,-500.89974539,0.00013698,2]
[335913142,1724595046020,-592.14,0.00013698,2]
[335913143,1724595046030,-500.0,0.00013698,2]
[335913144,1724595046039,-500.0,0.00013698,2]
[335913145,1724595046048,-500.0,0.00013698,2]
[335913146,1724595046058,-500.0,0.00013698,2]
[335913147,1724595046067,-500.0,0.00013698,2]
[335913148,1724595046076,-500.0,0.00013698,2]
[335913149,1724595046086,-500.0,0.00013698,2]
[335913150,1724595046095,-550.41,0.00013698,2]
[335913151,1724595046105,-617.08,0.00013698,2]
[335913152,1724595046114,-500.0,0.00013698,2]
[335913153,1724595046134,-615.99,0.00013698,2]
[335913154,1724595046143,-500.0,0.00013698,2]
[335913155,1724595046151,-505.52,0.00013698,2]
[335913156,1724595046160,-388.27992153,0.00013698,2]
[335913157,1724595046170,-827.01,0.00013698,2]
[335913158,1724595046179,-500.0,0.00013698,2]
[335913159,1724595046188,-500.0,0.00013698,2]
[335913160,1724595046196,-607.51,0.00013698,2]
[335913161,1724595046205,-500.0,0.00013698,2]
[335913162,1724595046215,-748.16,0.00013698,2]
[335913163,1724595046224,-500.0,0.00013698,2]
[335913164,1724595046233,-820.03,0.00013698,2]
[335913165,1724595046242,-500.0,0.00013698,2]
[335913166,1724595046251,-500.0,0.00013698,2]
[335913167,1724595046260,-974.44,0.00013698,2]
[335913168,1724595046269,-1877.8,0.00013698,2]
[335913169,1724595046279,-500.0,0.00013698,2]
[335913170,1724595046289,-1877.8,0.00013698,2]
[335913171,1724595046299,-1877.8,0.00013698,2]
[335913172,1724595046308,-1877.8,0.00013698,2]
[335913173,1724595046317,-1877.8,0.00013698,2]
[335913174,1724595046327,-1877.8,0.00013698,2]
[335913175,1724595046336,-1877.8,0.00013698,2]
[335913176,1724595046346,-1877.8,0.00013698,2]
[335913177,1724595046356,-500.0,0.00013698,2]
[335913178,1724595046366,-1877.8,0.00013698,2]
[335913179,1724595046375,-1877.8,0.00013698,2]
[335913180,1724595046384,-1877.8,0.00013698,2]
[335913181,1724595046396,-941.16,0.00013698,2]
[335913182,1724595046407,-1877.8,0.00013698,2]
[335913183,1724595046417,-1877.8,0.00013698,2]
[335913184,1724595046427,-1877.8,0.00013698,2]
[335913185,1724595046440,-500.0,0.00013698,2]
[335913186,1724595046452,-1877.8,0.00013698,2]
[335913187,1724595046464,-500.0,0.00013698,2]
[335913188,1724595046474,-1877.8,0.00013698,2]
[335913189,1724595046483,-1877.8,0.00013698,2]
[335913190,1724595046492,-1877.8,0.00013698,2]
[335913191,1724595046501,-1877.8,0.00013698,2]
[335913192,1724595046512,-1877.8,0.00013698,2]
[335913193,1724595046524,-1877.8,0.00013698,2]
[335913194,1724595046534,-1877.8,0.00013698,2]
[335913195,1724595046545,-1877.8,0.00013698,2]
[335913196,1724595046555,-1877.81898237,0.00013698,2]
[335913197,1724595046564,-500.0,0.00013698,2]
[335913198,1724595046574,-500.0,0.00013698,2]
[335913199,1724595046584,-8977.32,0.00013698,2]
[335913200,1724595046593,-717.87,0.00013698,2]
[335913201,1724595046603,-500.0,0.00013698,2]
[335913202,1724595046612,-744.15,0.00013698,2]
[335913203,1724595046628,-1000.0,0.00013698,2]
[335913204,1724595046639,-500.0,0.00013698,2]
[335913205,1724595046650,-788.82,0.00013698,2]
[335913206,1724595046659,-500.0,0.00013698,2]
[335913207,1724595046669,-500.0,0.00013698,2]
[335913208,1724595046678,-860.77,0.00013698,2]
[335913209,1724595046687,-3050.55,0.00013698,2]
[335913210,1724595046696,-504.29,0.00013698,2]
[335913211,1724595046706,-500.0,0.00013698,2]
[335913212,1724595046715,-300.86617653,0.00013698,2]
[335913213,1724595046724,-3757.58,0.00013698,2]
[335913214,1724595046734,-500.0,0.00013698,2]
[335913215,1724595046744,-500.0,0.00013698,2]
[335913216,1724595046753,-661.08,0.00013698,2]
[335913217,1724595046762,-223.84245138,0.00013698,2]
[335913218,1724595046771,-1063.81,0.00013698,2]
[335913219,1724595046780,-500.0,0.00013698,2]
[335913220,1724595046789,-500.0,0.00013698,2]
[335913221,1724595046800,-500.0,0.00013698,2]
[335913222,1724595046814,-500.0,0.00013698,2]
[335913223,1724595046823,-500.0,0.00013698,2]
[335913224,1724595046832,-500.0,0.00013698,2]
[335913225,1724595046841,-500.0,0.00013698,2]
[335913226,1724595046851,-3685.33,0.00013698,2]
[335913227,1724595046862,-716.48,0.00013698,2]
[335913228,1724595046871,-500.0,0.00013698,2]
[335913229,1724595046881,-500.0,0.00013698,2]
[335913230,1724595046891,-500.0,0.00013698,2]
[335913231,1724595046902,-740.32,0.00013698,2]
[335913232,1724595046911,-500.0,0.00013698,2]
[335913233,1724595046921,-500.0,0.00013698,2]
[335913234,1724595046930,-500.0,0.00013698,2]
[335913235,1724595046940,-500.0,0.00013698,2]
[335913236,1724595046949,-500.0,0.00013698,2]
[335913237,1724595046959,-5569.3,0.00013698,2]
[335913238,1724595046969,-500.0,0.00013698,2]
[335913239,1724595046979,-863.63,0.00013698,2]
[335913240,1724595046990,-500.0,0.00013698,2]
[335913241,1724595047000,-500.0,0.00013698,2]
[335913242,1724595047010,-745.78,0.00013698,2]
[335913243,1724595047019,-500.0,0.00013698,2]
[335913244,1724595047030,-1899.73,0.00013698,2]
[335913245,1724595047040,-983.61,0.00013698,2]
[335913246,1724595047049,-500.0,0.00013698,2]
[335913247,1724595047059,-765.43,0.00013698,2]
[335913248,1724595047069,-500.0,0.00013698,2]
[335913249,1724595047079,-625.05,0.00013698,2]
[335913250,1724595047088,-500.0,0.00013698,2]
[335913251,1724595047098,-775.83,0.00013698,2]
[335913252,1724595047107,-500.0,0.00013698,2]
[335913253,1724595047117,-500.0,0.00013698,2]
[335913254,1724595047126,-691.12,0.00013698,2]
[335913255,1724595047137,-500.0,0.00013698,2]
[335913256,1724595047148,-500.0,0.00013698,2]
[335913257,1724595047159,-500.0,0.00013698,2]
[335913258,1724595047169,-500.0,0.00013698,2]
[335913259,1724595047179,-500.0,0.00013698,2]
[335913260,1724595047190,-503.9384888,0.00013698,2]
[335913261,1724595047201,-500.0,0.00013698,2]
[335913262,1724595047211,-500.0,0.00013698,2]
[335913263,1724595047220,-500.0,0.00013698,2]
[335913264,1724595047231,-950.99,0.00013698,2]
[335913265,1724595047243,-500.0,0.00013698,2]
[335913266,1724595047254,-500.0,0.00013698,2]
[335913267,1724595047266,-1557.06,0.00013698,2]
[335913268,1724595047275,-500.0,0.00013698,2]
[335913269,1724595047286,-500.0,0.00013698,2]
[335913270,1724595047296,-923.68,0.00013698,2]
[335913271,1724595047306,-500.0,0.00013698,2]
[335913272,1724595047315,-372.24155143,0.00013698,2]
[335913273,1724595047324,-562.17,0.00013698,2]
[335913274,1724595047334,-500.0,0.00013698,2]
[335913275,1724595047343,-500.0,0.00013698,2]
[335913276,1724595047354,-500.0,0.00013698,2]
[335913277,1724595047365,-879.28,0.00013698,2]
[335913278,1724595047376,-557.67,0.00013698,2]
[335913279,1724595047385,-865.37,0.00013698,2]
[335913280,1724595047395,-1443.91,0.00013698,2]
[335913281,1724595047404,-540.9,0.00013698,2]
[335913282,1724595047414,-500.0,0.00013698,2]
[335913283,1724595047423,-1397.32,0.00013698,2]
[335913284,1724595047432,-500.0,0.00013698,2]
[335913285,1724595047443,-256.02915074,0.00013698,2]
[335913286,1724595047454,-500.0,0.00013698,2]
[335913287,1724595047465,-501.455762,0.00013698,2]
[335913288,1724595047475,-1305.62,0.00013698,2]
[335913289,1724595047485,-500.0,0.00013698,2]
[335913290,1724595047495,-1368.32,0.00013698,2]
[335913291,1724595047504,-7048.27,0.00013698,2]
[335913292,1724595047513,-11518.8,0.00013698,2]
[335913293,1724595047523,-500.0,0.00013698,2]
[335913294,1724595047532,-946.24,0.00013698,2]
[335913295,1724595047542,-500.0,0.00013698,2]
[335913296,1724595047551,-1067.64,0.00013698,2]
[335913297,1724595047560,-844.11,0.00013698,2]
[335913298,1724595047570,-600.3,0.00013698,2]
[335913299,1724595047579,-500.0,0.00013698,2]
[335913300,1724595047589,-266.70932441,0.00013698,2]
[335913301,1724595047599,-500.0,0.00013698,2]
[335913302,1724595047608,-500.0,0.00013698,2]
[335913303,1724595047618,-500.0,0.00013698,2]
[335913304,1724595047627,-500.0,0.00013698,2]
[335913305,1724595047636,-680.18,0.00013698,2]
[335913306,1724595047646,-500.0,0.00013698,2]
[335913307,1724595047657,-5783.74,0.00013698,2]
[335913308,1724595047667,-500.0,0.00013698,2]
[335913309,1724595047677,-841.87,0.00013698,2]
[335913310,1724595047686,-500.0,0.00013698,2]
[335913311,1724595047695,-906.24,0.00013698,2]
[335913312,1724595047705,-500.0,0.00013698,2]
[335913313,1724595047715,-845.56,0.00013698,2]
[335913314,1724595047726,-500.0,0.00013698,2]
[335913315,1724595047738,-1056.24,0.00013698,2]
[335913316,1724595047748,-500.0,0.00013698,2]
[335913317,1724595047759,-500.0,0.00013698,2]
[335913318,1724595047769,-43913.34,0.00013698,2]
[335913319,1724595047779,-500.0,0.00013698,2]
[335913320,1724595047790,-500.0,0.00013698,2]
[335913321,1724595047802,-500.0,0.00013698,2]
[335913322,1724595047816,-500.0,0.00013698,2]
[335913323,1724595047827,-159.70014743,0.00013698,2]
[335913324,1724595047839,-590.88,0.00013698,2]
[335913325,1724595047849,-500.0,0.00013698,2]
[335913326,1724595047860,-500.0,0.00013698,2]
[335913327,1724595047870,-579.73,0.00013698,2]
[335913328,1724595047883,-874.27,0.00013698,2]
[335913329,1724595047892,-500.0,0.00013698,2]
[335913330,1724595047903,-500.0,0.00013698,2]
[335913331,1724595047913,-1057.72,0.00013698,2]
[335913332,1724595047924,-500.0,0.00013698,2]
[335913333,1724595047936,-749.86,0.00013698,2]
[335913334,1724595047945,-500.0,0.00013698,2]
[335913335,1724595047956,-893.3,0.00013698,2]
[335913336,1724595047966,-779.04,0.00013698,2]
[335913337,1724595047978,-871.18,0.00013698,2]
[335913338,1724595047988,-500.0,0.00013698,2]
[335913339,1724595047999,-5694.29,0.00013698,2]
[335913340,1724595048009,-500.0,0.00013698,2]
[335913341,1724595048019,-829.44,0.00013698,2]
[335913342,1724595048029,-500.0,0.00013698,2]
[335913343,1724595048039,-951.22,0.00013698,2]
[335913344,1724595048049,-500.0,0.00013698,2]
[335913345,1724595048058,-500.0,0.00013698,2]
[335913346,1724595048069,-625.61,0.00013698,2]
[335913347,1724595048079,-532.42,0.00013698,2]
[335913348,1724595048088,-5987.24,0.00013698,2]
[335913349,1724595048097,-500.0,0.00013698,2]
[335913350,1724595048106,-834.15,0.00013698,2]
[335913351,1724595048116,-500.0,0.00013698,2]
[335913352,1724595048125,-500.0,0.00013698,2]
[335913353,1724595048136,-886.22,0.00013698,2]
[335913354,1724595048146,-699.09,0.00013698,2]
[335913355,1724595048155,-500.0,0.00013698,2]
[335913356,1724595048165,-500.0,0.00013698,2]
[335913357,1724595048175,-525.18,0.00013698,2]
[335913358,1724595048186,-500.0,0.00013698,2]
[335913359,1724595048196,-500.0,0.00013698,2]
[335913360,1724595048207,-500.0,0.00013698,2]
[335913361,1724595048217,-15564.52,0.00013698,2]
[335913362,1724595048228,-500.0,0.00013698,2]
[335913363,1724595048238,-500.0,0.00013698,2]
[335913364,1724595048249,-664.96,0.00013698,2]
[335913365,1724595048260,-191.06372251,0.00013698,2]
[335913366,1724595048270,-588.92,0.00013698,2]
[335913367,1724595048280,-500.0,0.00013698,2]
[335913368,1724595048290,-500.0,0.00013698,2]
[335913369,1724595048299,-654.32,0.00013698,2]
[335913370,1724595048309,-882.32,0.00013698,2]
[335913371,1724595048320,-1033.99,0.00013698,2]
[335913372,1724595048329,-500.0,0.00013698,2]
[335913373,1724595048339,-461.48528439,0.00013698,2]
[335913374,1724595048348,-846.33,0.00013698,2]
[335913375,1724595048358,-518.64,0.00013698,2]
[335913376,1724595048367,-571.48,0.00013698,2]
[335913377,1724595048377,-500.0,0.00013698,2]
[335913378,1724595048386,-507.56177402,0.00013698,2]
[335913379,1724595048395,-663.68,0.00013698,2]
[335913380,1724595048405,-500.0,0.00013698,2]
[335913381,1724595048415,-808.06,0.00013698,2]
[335913382,1724595048424,-676.98,0.00013698,2]
[335913383,1724595048433,-500.0,0.00013698,2]
[335913384,1724595048443,-819.92,0.00013698,2]
[335913385,1724595048452,-500.0,0.00013698,2]
[335913386,1724595048461,-500.0,0.00013698,2]
[335913387,1724595048472,-1666.01,0.00013698,2]
[335913388,1724595048481,-500.0,0.00013698,2]
[335913389,1724595048491,-500.0,0.00013698,2]
[335913390,1724595048500,-500.0,0.00013698,2]
[335913391,1724595048511,-500.0,0.00013698,2]
[335913392,1724595048521,-500.0,0.00013698,2]
[335913393,1724595048531,-748.27,0.00013698,2]
[335913394,1724595048540,-844.98,0.00013698,2]
[335913395,1724595048554,-500.0,0.00013698,2]
[335913396,1724595048565,-500.0,0.00013698,2]
[335913397,1724595048575,-500.0,0.00013698,2]
[335913398,1724595048585,-664.88,0.00013698,2]
[335913399,1724595048594,-500.0,0.00013698,2]
[335913400,1724595048604,-750.9,0.00013698,2]
[335913401,1724595048615,-640.58,0.00013698,2]
[335913402,1724595048625,-500.0,0.00013698,2]
[335913403,1724595048635,-535.17347615,0.00013698,2]
[335913404,1724595048645,-1308.61,0.00013698,2]
[335913405,1724595048656,-500.0,0.00013698,2]
[335913406,1724595048665,-990.99,0.00013698,2]
[335913407,1724595048675,-500.0,0.00013698,2]
[335913408,1724595048686,-690.62,0.00013698,2]
[335913409,1724595048696,-500.0,0.00013698,2]
[335913410,1724595048706,-500.0,0.00013698,2]
[335913411,1724595048715,-6069.3,0.00013698,2]
[335913412,1724595048725,-500.0,0.00013698,2]
[335913413,1724595048735,-500.0,0.00013698,2]
[335913414,1724595048748,-500.0,0.00013698,2]
[335913415,1724595048757,-500.0,0.00013698,2]
[335913416,1724595048767,-2604.52,0.00013698,2]
[335913417,1724595048776,-733.72,0.00013698,2]
[335913418,1724595048785,-1862.56,0.00013698,2]
[335913419,1724595048795,-500.0,0.00013698,2]
[335913420,1724595048806,-533.42,0.00013698,2]
[335913421,1724595048821,-520.14,0.00013698,2]
[335913422,1724595048831,-500.0,0.00013698,2]
[335913423,1724595048842,-715.86,0.00013698,2]
[335913424,1724595048852,-500.0,0.00013698,2]
[335913425,1724595048863,-500.0,0.00013698,2]
[335913426,1724595048872,-6688.98,0.00013698,2]
[335913427,1724595048883,-748.35,0.00013698,2]
[335913428,1724595048897,-500.0,0.00013698,2]
[335913429,1724595048908,-610.86,0.00013698,2]
[335913430,1724595048918,-654.42,0.00013698,2]
[335913431,1724595048928,-543.91,0.00013698,2]
[335913432,1724595048938,-500.0,0.00013698,2]
[335913433,1724595048948,-500.0,0.00013698,2]
[335913434,1724595048957,-500.0,0.00013698,2]
[335913435,1724595048968,-316.1613248,0.00013698,2]
[335913436,1724595048978,-500.0,0.00013698,2]
[335913437,1724595048988,-776.76814928,0.00013698,2]
[335913438,1724595048997,-500.0,0.00013698,2]
[335913439,1724595049007,-623.79,0.00013698,2]
[335913440,1724595049017,-768.23,0.00013698,2]
[335913441,1724595049026,-500.0,0.00013698,2]
[335913442,1724595049038,-500.0,0.00013699,2]
[335913443,1724595049048,-151.096476,0.00013699,2]
[335913444,1724595049058,-151.0,0.00013699,2]
[335913445,1724595049068,-151.0,0.00013699,2]
[335913446,1724595049078,-220.188812,0.00013699,2]
[335913447,1724595049087,-151.0,0.00013699,2]
[335913448,1724595049097,-151.0,0.00013699,2]
[335913449,1724595049107,-151.0,0.00013699,2]
[335913450,1724595049117,-151.0,0.00013699,2]
[335913451,1724595049134,-151.0,0.00013699,2]
[335913452,1724595049326,-151.0,0.00013699,2]
[335913453,1724595049335,-231.930902,0.00013699,2]
[335913454,1724595049345,-151.0,0.00013699,2]
[335913455,1724595049355,-151.243743,0.00013699,2]
[335913456,1724595049365,-151.0,0.00013699,2]
[335913457,1724595049375,-151.0,0.00013699,2]
[335913458,1724595049385,-151.0,0.00013699,2]
[335913459,1724595049394,-151.0,0.00013699,2]
[335913460,1724595049406,-151.0,0.00013699,2]
[335913461,1724595049417,-151.0,0.00013699,2]
[335913462,1724595049426,-151.0,0.00013699,2]
[335913463,1724595049436,-151.0,0.00013699,2]
[335913464,1724595049446,-151.0,0.00013699,2]
[335913465,1724595049457,-151.0,0.00013699,2]
[335913466,1724595049467,-151.0,0.00013699,2]
[335913467,1724595049477,-151.0,0.00013699,2]
[335913468,1724595049487,-151.0,0.00013699,2]
[335913469,1724595049496,-151.0,0.00013699,2]
[335913470,1724595049506,-151.0,0.00013699,2]
[335913471,1724595049515,-151.0,0.00013699,2]
[335913472,1724595049525,-151.0,0.00013699,2]
[335913473,1724595049535,-151.0,0.00013699,2]
[335913474,1724595049545,-151.0,0.00013699,2]
[335913475,1724595049556,-151.0,0.00013699,2]
[335913476,1724595049565,-151.0,0.00013699,2]
[335913477,1724595049575,-151.0,0.00013699,2]
[335913478,1724595049584,-151.0,0.00013699,2]
[335913479,1724595049594,-151.0,0.00013699,2]
[335913480,1724595049604,-151.0,0.00013699,2]
[335913481,1724595049614,-151.0,0.00013699,2]
[335913482,1724595049624,-151.0,0.00013699,2]
[335913483,1724595049633,-151.0,0.00013699,2]
[335913484,1724595049643,-186.752833,0.00013699,2]
[335913485,1724595049652,-151.0,0.00013699,2]
[335913486,1724595049662,-289.174433,0.00013699,2]
[335913487,1724595049671,-151.0,0.00013699,2]
[335913488,1724595049681,-151.0,0.00013699,2]
[335913489,1724595049692,-151.0,0.00013699,2]
[335913490,1724595049702,-151.0,0.00013699,2]
[335913491,1724595049712,-156.51098,0.00013699,2]
[335913492,1724595049722,-151.0,0.00013699,2]
[335913493,1724595049732,-151.489163,0.00013699,2]
[335913494,1724595049742,-151.0,0.00013699,2]
[335913495,1724595049753,-151.0,0.00013699,2]
[335913496,1724595049763,-151.0,0.00013699,2]
[335913497,1724595049772,-151.0,0.00013699,2]
[335913498,1724595049781,-151.0,0.00013699,2]
[335913499,1724595049791,-151.0,0.00013699,2]
[335913500,1724595049800,-151.0,0.00013699,2]
[335913501,1724595049813,-151.0,0.00013699,2]
[335913502,1724595049823,-151.0,0.00013699,2]
[335913503,1724595049833,-151.0,0.00013699,2]
[335913504,1724595049843,-151.0,0.00013699,2]
[335913505,1724595049855,-215.639144,0.00013699,2]
[335913506,1724595049865,-269.158625,0.00013699,2]
[335913507,1724595049875,-269.158625,0.00013699,2]
[335913508,1724595049886,-269.158625,0.00013699,2]
[335913509,1724595049897,-269.158625,0.00013699,2]
[335913510,1724595049908,-269.158625,0.00013699,2]
[335913511,1724595049917,-269.158625,0.00013699,2]
[335913512,1724595049927,-269.158625,0.00013699,2]
[335913513,1724595049936,-269.158625,0.00013699,2]
[335913514,1724595049946,-269.158625,0.00013699,2]
[335913515,1724595049957,-269.158625,0.00013699,2]
[335913516,1724595049967,-269.158625,0.00013699,2]
[335913517,1724595049976,-269.158625,0.00013699,2]
[335913518,1724595049986,-269.158625,0.00013699,2]
[335913519,1724595049996,-269.158625,0.00013699,2]
[335913520,1724595050006,-269.158625,0.00013699,2]
[335913521,1724595050016,-269.158625,0.00013699,2]
[335913522,1724595050026,-269.158625,0.00013699,2]
[335913523,1724595050036,-269.158625,0.00013699,2]
[335913524,1724595050046,-269.158625,0.00013699,2]
[335913525,1724595050056,-269.15862,0.00013699,2]
[335913526,1724595050066,-151.0,0.00013699,2]
[335913527,1724595050077,-151.0,0.00013699,2]
[335913528,1724595050087,-151.0,0.00013699,2]
[335913529,1724595050097,-151.847364,0.00013699,2]
[335913530,1724595050106,-151.0,0.00013699,2]
[335913531,1724595050115,-151.0,0.00013699,2]
[335913532,1724595050126,-151.0,0.00013699,2]
[335913533,1724595050135,-151.0,0.00013699,2]
[335913534,1724595050146,-151.0,0.00013699,2]
[335913535,1724595050155,-151.0,0.00013699,2]
[335913536,1724595050164,-151.0,0.00013699,2]
[335913537,1724595050174,-151.0,0.00013699,2]
[335913538,1724595050184,-151.0,0.00013699,2]
[335913539,1724595050194,-151.0,0.00013699,2]
[335913540,1724595050203,-151.0,0.00013699,2]
[335913541,1724595050214,-151.0,0.00013699,2]
[335913542,1724595050223,-231.800041,0.00013699,2]
[335913543,1724595050234,-151.0,0.00013699,2]
[335913544,1724595050243,-151.0,0.00013699,2]
[335913545,1724595050254,-151.0,0.00013699,2]
[335913546,1724595050264,-151.597859,0.00013699,2]
[335913547,1724595050273,-180.4885,0.00013699,2]
[335913548,1724595050283,-151.0,0.00013699,2]
[335913549,1724595050293,-151.0,0.00013699,2]
[335913550,1724595050303,-261.985501,0.00013699,2]
[335913551,1724595050313,-151.0,0.00013699,2]
[335913552,1724595050323,-151.0,0.00013699,2]
[335913553,1724595050334,-151.857761,0.00013699,2]
[335913554,1724595050344,-578.124087,0.00013699,2]
[335913555,1724595050353,-578.124087,0.00013699,2]
[335913556,1724595050363,-578.124087,0.00013699,2]
[335913557,1724595050375,-578.124087,0.00013699,2]
[335913558,1724595050384,-578.124087,0.00013699,2]
[335913559,1724595050394,-578.124087,0.00013699,2]
[335913560,1724595050403,-578.124087,0.00013699,2]
[335913561,1724595050413,-578.124087,0.00013699,2]
[335913562,1724595050423,-578.124087,0.00013699,2]
[335913563,1724595050433,-578.124087,0.00013699,2]
[335913564,1724595050444,-578.124087,0.00013699,2]
[335913565,1724595050453,-578.124087,0.00013699,2]
[335913566,1724595050462,-578.124087,0.00013699,2]
[335913567,1724595050472,-578.124087,0.00013699,2]
[335913568,1724595050482,-578.124087,0.00013699,2]
[335913569,1724595050491,-578.124087,0.00013699,2]
[335913570,1724595050501,-578.124087,0.00013699,2]
[335913571,1724595050511,-578.124087,0.00013699,2]
[335913572,1724595050520,-578.124087,0.00013699,2]
[335913573,1724595050531,-578.124089,0.00013699,2]
[335913574,1724595050540,-151.0,0.00013699,2]
[335913575,1724595050550,-151.0,0.00013699,2]
[335913576,1724595050559,-151.0,0.00013699,2]
[335913577,1724595050569,-151.0,0.00013699,2]
[335913578,1724595050579,-151.0,0.00013699,2]
[335913579,1724595050588,-151.0,0.00013699,2]
[335913580,1724595050598,-151.0,0.00013699,2]
[335913581,1724595050608,-151.0,0.00013699,2]
[335913582,1724595050620,-151.0,0.00013699,2]
[335913583,1724595050631,-151.0,0.00013699,2]
[335913584,1724595050641,-151.0,0.00013699,2]
[335913585,1724595050652,-151.0,0.00013699,2]
[335913586,1724595050663,-151.0,0.00013699,2]
[335913587,1724595050672,-198.319016,0.00013699,2]
[335913588,1724595050683,-151.0,0.00013699,2]
[335913589,1724595050693,-151.0,0.00013699,2]
[335913590,1724595050703,-151.0,0.00013699,2]
[335913591,1724595050712,-151.462341,0.00013699,2]
[335913592,1724595050722,-151.0,0.00013699,2]
[335913593,1724595050732,-151.0,0.00013699,2]
[335913594,1724595050742,-151.0,0.00013699,2]
[335913595,1724595050754,-151.0,0.00013699,2]
[335913596,1724595050764,-151.0,0.00013699,2]
[335913597,1724595050774,-151.0,0.00013699,2]
[335913598,1724595050784,-151.0,0.00013699,2]
[335913599,1724595050793,-288.192992,0.00013699,2]
[335913600,1724595050803,-151.0,0.00013699,2]
[335913601,1724595050818,-151.0,0.00013699,2]
[335913602,1724595050828,-230.226032,0.00013699,2]
[335913603,1724595050838,-151.0,0.00013699,2]
[335913604,1724595050849,-151.0,0.00013699,2]
[335913605,1724595050859,-151.0,0.00013699,2]
[335913606,1724595050872,-151.0,0.00013699,2]
[335913607,1724595050882,-151.0,0.00013699,2]
[335913608,1724595050893,-151.0,0.00013699,2]
[335913609,1724595050903,-151.0,0.00013699,2]
[335913610,1724595050915,-151.0,0.00013699,2]
[335913611,1724595050925,-151.0,0.00013699,2]
[335913612,1724595050935,-151.0,0.00013699,2]
[335913613,1724595050946,-151.0,0.00013699,2]
[335913614,1724595050955,-151.0,0.00013699,2]
[335913615,1724595050966,-151.0,0.00013699,2]
[335913616,1724595050976,-151.0,0.00013699,2]
[335913617,1724595050986,-151.0,0.00013699,2]
[335913618,1724595050995,-151.0,0.00013699,2]
[335913619,1724595051005,-296.060833,0.00013699,2]
[335913620,1724595051015,-2163.818313,0.00013699,2]
[335913621,1724595051024,-184.656162,0.00013699,2]
[335913622,1724595051034,-184.656162,0.00013699,2]
[335913623,1724595051043,-184.656162,0.00013699,2]
[335913624,1724595051053,-184.656162,0.00013699,2]
[335913625,1724595051062,-184.656162,0.00013699,2]
[335913626,1724595051072,-184.656162,0.00013699,2]